bitfinex/quotes_BTCUSD_20241226
["timestamp","ask_amount","ask_price","bid_price","bid_amount"]
[1735238028620,0.38408632,95969.0,95968.0,0.00115491]
[1735238028806,0.59867768,95969.0,95968.0,0.00115491]
[1735238029352,0.59867768,95969.0,95940.0,0.208463]
[1735238029353,0.208444,95949.0,95940.0,0.20770351]
[1735238029562,0.10398632,95949.0,95940.0,0.20785831]
[1735238030356,0.26770504,95969.0,95940.0,0.0001548]
[1735238030561,0.10398632,95968.0,95951.0,0.208438]
[1735238030830,0.208416,95962.0,95951.0,0.208438]
[1735238031059,0.10398632,95961.0,95951.0,0.208438]
[1735238031267,0.20842,95960.0,95949.0,0.208444]
[1735238031472,0.10398632,95959.0,95946.0,0.208449]
[1735238031890,0.208424,95958.0,95946.0,0.208449]
[1735238032097,0.208424,95958.0,95946.0,0.416899]
[1735238032479,0.208424,95958.0,95949.0,0.004]
[1735238032655,0.208424,95958.0,95946.0,0.418899]
[1735238033223,0.208424,95958.0,95946.0,0.416899]
[1735238033423,0.208424,95958.0,95946.0,0.419899]
[1735238033626,0.208424,95958.0,95949.0,0.004]
[1735238034779,0.208424,95958.0,95946.0,0.211449]
[1735238034986,0.208424,95958.0,95946.0,0.208449]
[1735238035349,0.208424,95958.0,95949.0,0.003]
[1735238035678,0.10398632,95959.0,95950.0,0.208441]
[1735238036127,0.31241032,95959.0,95949.0,0.007]
[1735238036330,0.31241032,95959.0,95949.0,0.004]
[1735238037070,0.208433,95954.0,95949.0,0.004]
[1735238037271,0.208407,95966.0,95946.0,0.003]
[1735238037272,0.18288632,95953.0,95946.0,0.003]
[1735238037702,0.208448,95947.0,95946.0,0.003]
[1735238037871,0.31243432,95947.0,95946.0,0.003]
[1735238039274,0.34187834,95947.0,95946.0,0.003]
[1735238039878,0.31243432,95947.0,95946.0,0.003]
[1735238040086,0.31243432,95947.0,95940.0,0.0001548]
[1735238040317,0.208452,95945.0,95940.0,0.0001548]
[1735238040464,0.31243832,95945.0,95940.0,0.0001548]
[1735238041067,0.208457,95943.0,95940.0,0.0001548]
[1735238041304,0.208461,95941.0,95940.0,0.0001548]
[1735238041506,0.31244732,95941.0,95940.0,0.0001548]
[1735238042906,0.41434732,95941.0,95940.0,0.0051548]
[1735238043098,0.45964732,95941.0,95940.0,0.0051548]
[1735238043516,0.45964732,95941.0,95940.0,0.0031548]
[1735238043737,0.55730255,95941.0,95940.0,0.0001548]
[1735238043979,0.80730255,95941.0,95940.0,0.0001548]
[1735238044185,0.90730255,95941.0,95940.0,0.0001548]
[1735238044358,0.90730255,95941.0,95922.0,8.55e-05]
[1735238044359,0.1,95925.0,95905.0,9.58e-05]
[1735238044559,0.0789,95920.0,95905.0,9.58e-05]
[1735238044795,0.10398632,95919.0,95905.0,0.00061162]
[1735238045001,0.208526,95911.0,95905.0,0.00061162]
[1735238045178,0.10398632,95910.0,95905.0,0.00061162]
[1735238045354,0.208531,95909.0,95905.0,0.00061162]
[1735238045561,0.10398632,95908.0,95905.0,0.00061162]
[1735238045779,0.208535,95907.0,95905.0,0.00361162]
[1735238046123,0.10398632,95906.0,95905.0,0.00061162]
[1735238046446,0.10398632,95906.0,95905.0,0.00761162]
[1735238046887,0.10398632,95906.0,95905.0,0.00561162]
[1735238047707,0.15722769,95906.0,95905.0,0.00061162]
[1735238047900,0.10398632,95906.0,95905.0,0.00061162]
[1735238048971,0.10398632,95906.0,95905.0,0.00261162]
[1735238049177,0.10398632,95906.0,95905.0,0.00061162]
[1735238049376,0.208554,95898.0,95897.0,0.13385972]
[1735238049576,0.208554,95898.0,95897.0,0.0001546]
[1735238049577,0.31254032,95898.0,95897.0,0.0001546]
[1735238050469,0.33554032,95898.0,95897.0,0.0001546]
[1735238050615,0.58554032,95898.0,95897.0,0.0001546]
[1735238050821,0.58554032,95898.0,95897.0,0.0011546]
[1735238051052,0.68611818,95898.0,95897.0,0.0011546]
[1735238051253,0.73331818,95898.0,95897.0,0.0001546]
[1735238051444,0.63274032,95898.0,95897.0,0.0001546]
[1735238051638,0.63274032,95898.0,95897.0,0.0011546]
[1735238051840,0.64309323,95898.0,95897.0,0.0011546]
[1735238052037,0.64309323,95898.0,95897.0,0.0001546]
[1735238052685,0.65509323,95898.0,95897.0,0.0011546]
[1735238052844,0.75907955,95898.0,95897.0,0.0011546]
[1735238053242,0.75607955,95898.0,95897.0,0.0001546]
[1735238053455,0.74907955,95898.0,95897.0,0.0001546]
[1735238053656,0.75507955,95898.0,95897.0,0.0011546]
[1735238053980,0.75307955,95898.0,95897.0,0.0011546]
[1735238054378,0.208597,95879.0,95865.0,0.2081498]
[1735238054600,0.2086,95877.0,95871.0,0.00015506]
[1735238054817,0.20861,95873.0,95871.0,0.00015506]
[1735238054962,0.10398632,95872.0,95871.0,0.00015506]
[1735238056093,0.10398632,95872.0,95871.0,0.00315506]
[1735238056291,0.10398632,95872.0,95871.0,0.00015506]
[1735238056813,0.10398632,95872.0,95871.0,0.00815506]
[1735238057008,0.18275638,95872.0,95871.0,0.00815506]
[1735238057410,0.10398632,95872.0,95871.0,0.00815506]
[1735238057610,0.10398632,95872.0,95871.0,0.00515506]
[1735238058591,0.10398632,95872.0,95871.0,0.00015506]
[1735238059000,0.10398632,95872.0,95871.0,0.00415506]
[1735238059205,0.12698632,95872.0,95871.0,0.00215506]
[1735238059404,0.208653,95853.0,95846.0,0.0824]
[1735238059603,0.31263932,95853.0,95846.0,0.08255509]
[1735238060267,0.208663,95849.0,95846.0,0.08255509]
[1735238060472,0.10398632,95848.0,95846.0,0.00015509]
[1735238060660,0.23992993,95847.0,95846.0,0.00515509]
[1735238060949,0.34391625,95847.0,95846.0,0.00515509]
[1735238061479,0.10398632,95847.0,95846.0,0.00515509]
[1735238061651,0.10398632,95847.0,95846.0,0.01315509]
[1735238061991,0.10398632,95847.0,95846.0,0.00815509]
[1735238062189,0.10398632,95847.0,95846.0,0.00015509]
[1735238062388,0.10398632,95847.0,95846.0,0.00915509]
[1735238062633,0.31265132,95847.0,95846.0,0.00915509]
[1735238062837,0.31265132,95847.0,95846.0,0.00415509]
[1735238063221,0.31265132,95847.0,95846.0,0.00715509]
[1735238063855,0.10398632,95847.0,95846.0,0.00715509]
[1735238064433,0.10398632,95847.0,95846.0,0.00315509]
[1735238064633,0.208641,95858.0,95847.0,0.0824]
[1735238064859,0.10398632,95858.0,95847.0,0.0824]
[1735238065078,0.208644,95857.0,95847.0,0.0824]
[1735238065514,0.10398632,95858.0,95847.0,0.0824]
[1735238065719,0.208646,95856.0,95847.0,0.0824]
[1735238065872,0.208646,95856.0,95847.0,0.0834]
[1735238066526,0.208646,95856.0,95847.0,0.0824]
[1735238066887,0.208646,95856.0,95847.0,0.0834]
[1735238067793,0.10398632,95858.0,95847.0,0.0834]
[1735238068005,0.208644,95857.0,95847.0,0.0834]
[1735238068205,0.417288,95857.0,95847.0,0.0834]
[1735238068379,0.417288,95857.0,95847.0,0.0824]
[1735238068574,0.49027843,95857.0,95847.0,0.0824]
[1735238068717,0.10398632,95858.0,95847.0,0.0834]
[1735238068922,0.417292,95856.0,95847.0,0.0854]
[1735238069125,0.10398632,95858.0,95847.0,0.0854]
[1735238069325,0.208657,95852.0,95847.0,0.0844]
[1735238069571,0.208663,95848.0,95847.0,0.004]
[1735238069781,0.208663,95848.0,95847.0,0.002]
[1735238069989,0.208663,95848.0,95847.0,0.003]
[1735238070209,0.208663,95848.0,95847.0,0.001]
[1735238071171,0.208663,95848.0,95844.0,8.56e-05]
[1735238071366,0.208666,95847.0,95844.0,8.56e-05]
[1735238071595,0.417332,95847.0,95844.0,8.56e-05]
[1735238072655,0.417332,95847.0,95844.0,0.0030856]
[1735238072853,0.417332,95847.0,95844.0,0.0070856]
[1735238074163,0.208666,95847.0,95844.0,0.0070856]
[1735238074371,0.417332,95847.0,95844.0,0.0070856]
[1735238075554,0.417332,95847.0,95844.0,8.56e-05]
[1735238075750,0.418332,95847.0,95844.0,8.56e-05]
[1735238075955,0.418332,95847.0,95844.0,0.0010856]
[1735238076201,0.417332,95847.0,95844.0,0.0010856]
[1735238076401,0.417332,95847.0,95844.0,8.56e-05]
[1735238076658,0.417332,95847.0,95844.0,0.0010856]
[1735238077471,0.20867,95845.0,95844.0,0.0010856]
[1735238077669,0.31265632,95845.0,95844.0,0.0010856]
[1735238078073,0.31265632,95845.0,95844.0,8.56e-05]
[1735238078281,0.31265632,95845.0,95844.0,0.0010856]
[1735238078492,0.31365632,95845.0,95844.0,0.0010856]
[1735238078694,0.25591855,95845.0,95804.0,0.0763]
[1735238078898,0.481709,95827.0,95826.0,0.00015501]
[1735238079144,0.68569532,95827.0,95826.0,0.00015501]
[1735238079354,0.68569532,95827.0,95792.0,0.31036959]
[1735238079355,0.15,95809.0,95797.0,0.09258581]
[1735238079612,0.417527,95802.0,95797.0,0.09258581]
[1735238079808,0.208768,95800.0,95797.0,0.09258581]
[1735238080099,0.10398632,95799.0,95797.0,0.09258581]
[1735238081033,0.231772,95798.0,95797.0,0.09258581]
[1735238081265,0.38296329,95798.0,95797.0,0.09258581]
[1735238081472,0.38296329,95798.0,95760.0,0.256354]
[1735238081473,0.231785,95792.0,95760.0,0.256354]
[1735238081675,0.33577132,95792.0,95760.0,0.0475]
[1735238082305,0.71747132,95792.0,95791.0,0.0007177]
[1735238082498,0.80385138,95792.0,95791.0,0.0007177]
[1735238082712,0.81185138,95792.0,95791.0,0.0017177]
[1735238083901,0.49377132,95792.0,95791.0,0.0017177]
[1735238084099,0.48577132,95792.0,95791.0,0.0007177]
[1735238084271,0.48577132,95792.0,95769.0,8.57e-05]
[1735238084498,0.20882,95776.0,95768.0,0.0142195]
[1735238085090,0.208831,95771.0,95768.0,0.0142195]
[1735238085504,0.208831,95771.0,95769.0,0.001]
[1735238085709,0.208831,95771.0,95768.0,0.0142195]
[1735238086368,0.208831,95771.0,95768.0,0.0162195]
[1735238086569,0.208831,95771.0,95768.0,0.0182195]
[1735238087173,0.208835,95769.0,95768.0,0.0182195]
[1735238087416,0.58582132,95769.0,95768.0,0.0182195]
[1735238087772,0.68582132,95769.0,95768.0,0.0162195]
[1735238088152,0.68582132,95769.0,95768.0,1e-06]
[1735238088353,0.68582132,95769.0,95751.0,8.57e-05]
[1735238088354,0.408872,95752.0,95751.0,8.57e-05]
[1735238088583,0.76851832,95752.0,95751.0,0.00017739]
[1735238089439,0.76851832,95752.0,95721.0,0.04834879]
[1735238089440,0.417762,95748.0,95721.0,0.04834879]
[1735238089643,0.1,95749.0,95721.0,0.04850405]
[1735238089644,0.208919,95731.0,95721.0,0.04850405]
[1735238089844,0.208886,95746.0,95721.0,0.04850405]
[1735238090050,0.208901,95740.0,95721.0,0.04850405]
[1735238090245,0.208903,95738.0,95722.0,0.208938]
[1735238090891,0.20884884,95738.0,95722.0,0.208938]
[1735238091523,0.10398632,95740.0,95722.0,0.208938]
[1735238091729,0.001,95738.0,95722.0,0.208938]
[1735238092063,0.208905,95737.0,95722.0,0.208938]
[1735238092402,0.26118413,95737.0,95722.0,0.208938]
[1735238092621,0.10398632,95736.0,95721.0,0.04850405]
[1735238092832,0.10398632,95736.0,95721.0,0.00015526]
[1735238092833,0.09149652,95732.0,95721.0,0.00015526]
[1735238093020,0.208934,95724.0,95721.0,0.00015526]
[1735238093233,0.208938,95722.0,95721.0,0.00015526]
[1735238093378,0.31292432,95722.0,95721.0,0.00015526]
[1735238093581,0.208934,95724.0,95721.0,0.00015526]
[1735238094385,0.208934,95724.0,95711.0,0.13632721]
[1735238094604,0.208934,95724.0,95711.0,0.13648239]
[1735238094809,0.2716126,95724.0,95711.0,0.13648239]
[1735238095006,0.2716126,95724.0,95721.0,0.003]
[1735238095390,0.208934,95724.0,95721.0,0.004]
[1735238095601,0.208934,95724.0,95711.0,0.13648239]
[1735238095816,0.208934,95724.0,95711.0,0.14348239]
[1735238096015,0.208948,95718.0,95711.0,0.14348239]
[1735238096193,0.208948,95718.0,95711.0,0.13948239]
[1735238096424,0.05204989,95807.0,95711.0,0.13948239]
[1735238096425,0.23266,95752.0,95712.0,0.00104477]
[1735238096646,0.09149652,95740.0,95712.0,0.20896]
[1735238096848,0.15,95741.0,95721.0,0.20894]
[1735238096849,0.208914,95734.0,95721.0,0.20894]
[1735238097225,0.208914,95734.0,95711.0,0.13948239]
[1735238097226,0.208914,95733.0,95717.0,0.208948]
[1735238097832,0.208903,95738.0,95723.0,0.208935]
[1735238098030,0.208907,95736.0,95723.0,0.208935]
[1735238098407,0.208907,95736.0,95721.0,0.001]
[1735238098624,0.417815,95736.0,95720.0,0.208941]
[1735238098836,0.208907,95736.0,95720.0,0.208941]
[1735238099037,0.15,95739.0,95726.0,0.208928]
[1735238099229,0.15,95746.0,95727.0,0.0812]
[1735238099359,0.002,95736.0,95733.0,0.208912]
[1735238099598,0.01068823,95752.0,95733.0,0.10398632]
[1735238099799,0.208836,95769.0,95736.0,0.09149652]
[1735238100002,0.208865,95756.0,95745.0,0.208886]
[1735238100204,0.208854,95761.0,95745.0,0.208886]
[1735238100532,0.208857,95759.0,95745.0,0.208886]
[1735238101060,0.0208854,95760.0,95739.0,0.2089]
[1735238101061,0.208864,95756.0,95741.0,0.208896]
[1735238101263,0.208864,95756.0,95730.0,0.09149652]
[1735238101264,0.31285232,95755.0,95732.0,0.208915]
[1735238101492,0.208897,95741.0,95720.0,0.09149652]
[1735238101708,0.10398632,95740.0,95717.0,0.0812]
[1735238101857,0.208903,95738.0,95717.0,0.0812]
[1735238102058,0.10398632,95737.0,95733.0,0.005]
[1735238102333,0.417814,95736.0,95733.0,0.005]
[1735238102538,0.208919,95731.0,95718.0,0.208945]
[1735238102681,0.208919,95731.0,95728.0,0.002]
[1735238102866,0.208923,95729.0,95728.0,0.002]
[1735238103068,0.208923,95729.0,95718.0,0.208945]
[1735238103261,0.208923,95729.0,95717.0,0.0812]
[1735238103474,0.208923,95729.0,95718.0,0.208947]
[1735238103685,0.208919,95731.0,95718.0,0.208947]
[1735238103686,0.208919,95731.0,95728.0,0.002]
[1735238103976,0.20891,95735.0,95728.0,0.002]
[1735238104173,0.20891,95735.0,95723.0,0.208934]
[1735238104370,0.004,95737.0,95724.0,0.10503096]
[1735238104736,0.004,95737.0,95736.0,0.208907]
[1735238104868,0.2089912,95776.0,95755.0,0.208866]
[1735238105070,0.208843,95766.0,95751.0,0.208874]
[1735238105274,0.208835,95770.0,95756.0,0.208862]
[1735238105475,0.02090062,95769.0,95757.0,0.290062]
[1735238105847,0.208822,95775.0,95759.0,0.09149652]
[1735238105976,0.208822,95775.0,95760.0,0.208855]
[1735238106178,0.00015452,95775.0,95764.0,0.208845]
[1735238106491,0.00015452,95775.0,95760.0,0.208855]
[1735238106492,0.009,95770.0,95769.0,0.208835]
[1735238106694,0.00015452,95775.0,95773.0,0.208825]
[1735238107100,0.00015452,95775.0,95761.0,0.208853]
[1735238107497,0.00015452,95775.0,95766.0,0.208841]
[1735238107814,0.208824,95774.0,95773.0,0.002]
[1735238108221,0.00515452,95775.0,95753.0,0.208869]
[1735238108422,0.00515452,95775.0,95751.0,0.02041146]
[1735238108423,0.00515452,95775.0,95764.0,0.208846]
[1735238108609,0.00015452,95775.0,95764.0,0.208846]
[1735238108804,0.00015452,95775.0,95766.0,0.002]
[1735238109021,0.208824,95774.0,95766.0,0.002]
[1735238109366,0.02091447,95774.0,95766.0,0.001]
[1735238109569,0.00015452,95775.0,95766.0,0.001]
[1735238109976,0.208824,95774.0,95758.0,0.208859]
[1735238110213,0.00015452,95775.0,95766.0,0.001]
[1735238110214,0.208837,95769.0,95766.0,0.001]
[1735238111257,0.0001714,95774.0,95766.0,0.001]
[1735238111514,0.02110261,95774.0,95767.0,0.20884]
[1735238111732,0.0001714,95774.0,95767.0,0.20884]
[1735238112351,0.0001714,95774.0,95766.0,0.001]
[1735238112558,0.208836,95769.0,95766.0,0.001]
[1735238112735,0.417672,95769.0,95766.0,0.001]
[1735238113141,0.20884,95767.0,95766.0,0.001]
[1735238113316,0.26102337,95767.0,95749.0,0.208879]
[1735238113516,0.26102337,95767.0,95748.0,0.0826]
[1735238113517,0.208854,95761.0,95748.0,0.0826]
[1735238113718,0.208854,95761.0,95749.0,0.208879]
[1735238115032,0.009,95761.0,95749.0,0.418758]
[1735238115241,0.009,95761.0,95754.0,0.208867]
[1735238115871,0.208855,95760.0,95749.0,0.001]
[1735238116080,0.208855,95760.0,95750.0,0.208877]
[1735238116259,0.009,95761.0,95750.0,0.208877]
[1735238116871,0.208844,95765.0,95750.0,0.208877]
[1735238117073,0.417689,95765.0,95750.0,0.208877]
[1735238117475,0.31282432,95768.0,95749.0,0.004]
[1735238117672,0.208842,95766.0,95754.0,0.208867]
[1735238117935,0.417684,95766.0,95752.0,0.208872]
[1735238118236,0.208842,95766.0,95748.0,0.0826]
[1735238118391,0.10398632,95765.0,95750.0,0.001]
[1735238118596,0.208871,95753.0,95750.0,0.001]
[1735238119054,0.52172832,95753.0,95750.0,0.001]
[1735238119437,0.10398632,95752.0,95729.0,0.291522]
[1735238119637,0.208899,95740.0,95729.0,0.0826]
[1735238119976,0.208875,95751.0,95729.0,0.291521]
[1735238120119,0.208892,95743.0,95730.0,0.0500451]
[1735238120731,0.208892,95743.0,95731.0,0.208918]
[1735238121075,0.208865,95756.0,95730.0,0.0500451]
[1735238121405,0.208874,95752.0,95738.0,0.208902]
[1735238121809,0.208874,95752.0,95738.0,0.417804]
[1735238122012,0.208885,95747.0,95734.0,0.20891]
[1735238122220,0.001,95743.0,95734.0,0.20891]
[1735238123029,0.001,95743.0,95738.0,0.208901]
[1735238123234,0.001,95743.0,95738.0,0.417803]
[1735238123435,0.0001714,95774.0,95740.0,0.208899]
[1735238123646,0.208848,95764.0,95751.0,0.500347]
[1735238123854,0.0001714,95774.0,95755.0,0.208864]
[1735238124078,0.208844,95765.0,95751.0,0.291473]
[1735238124278,0.208835,95770.0,95756.0,0.208862]
[1735238124487,0.00115449,95763.0,95751.0,0.0826]
[1735238124701,0.00115449,95763.0,95761.0,0.208851]
[1735238124902,0.00115449,95763.0,95762.0,0.10503032]
[1735238125100,0.00015449,95763.0,95762.0,0.10503032]
[1735238125334,0.00115449,95763.0,95762.0,0.10398632]
[1735238125923,0.00115449,95763.0,95762.0,0.10503038]
[1735238126267,0.00415449,95763.0,95762.0,0.72777015]
[1735238126467,0.0001714,95774.0,95773.0,0.208827]
[1735238127526,0.208795,95788.0,95773.0,0.208827]
[1735238127727,0.208795,95788.0,95773.0,0.210827]
[1735238128102,0.208795,95788.0,95773.0,0.35106598]
[1735238128301,0.208795,95788.0,95773.0,0.34906598]
[1735238128586,0.208795,95788.0,95773.0,0.56189298]
[1735238128789,0.208795,95788.0,95773.0,0.55789298]
[1735238129042,0.208795,95788.0,95773.0,0.65575397]
[1735238129343,0.208795,95788.0,95773.0,0.51551499]
[1735238129488,0.208795,95788.0,95773.0,0.30668799]
[1735238129688,0.208795,95788.0,95777.0,0.208817]
[1735238130132,0.10398632,95787.0,95773.0,0.005]
[1735238130382,0.10398632,95787.0,95773.0,0.003]
[1735238130519,0.208813,95780.0,95773.0,0.003]
[1735238130939,0.208813,95780.0,95772.0,0.09348909]
[1735238131344,0.2088,95785.0,95762.0,0.09348909]
[1735238131538,0.208791,95790.0,95764.0,0.07210338]
[1735238131746,0.00015524,95792.0,95784.0,0.208801]
[1735238131951,0.00656545,95789.0,95784.0,0.208801]
[1735238132210,0.00015524,95792.0,95784.0,0.208801]
[1735238132322,0.001,95785.0,95784.0,0.208801]
[1735238132525,0.001,95785.0,95776.0,0.0769]
[1735238132526,0.001,95785.0,95779.0,0.208814]
[1735238132773,0.00015524,95792.0,95779.0,0.208814]
[1735238132946,0.00015524,95792.0,95783.0,0.208804]
[1735238133165,0.0074096,95791.0,95779.0,0.208814]
[1735238133367,0.0074096,95791.0,95787.0,0.208794]
[1735238133567,0.00015524,95792.0,95787.0,0.208794]
[1735238133769,0.00015524,95792.0,95789.0,0.417584]
[1735238134093,0.00415524,95792.0,95791.0,0.208787]
[1735238134340,0.00015524,95792.0,95791.0,0.31277332]
[1735238134756,0.00915524,95792.0,95791.0,0.31277332]
[1735238134956,0.00015524,95792.0,95791.0,0.31277332]
[1735238135359,0.00915524,95792.0,95791.0,0.31377332]
[1735238135590,0.00015524,95792.0,95791.0,0.31277332]
[1735238135994,0.01815524,95792.0,95791.0,0.31477332]
[1735238136186,0.01815524,95792.0,95791.0,0.210787]
[1735238137083,0.00932644,95792.0,95791.0,0.209787]
[1735238137287,0.00032644,95792.0,95791.0,0.208787]
[1735238137457,0.00032644,95792.0,95791.0,0.210787]
[1735238137458,0.01832644,95792.0,95791.0,0.210787]
[1735238137680,0.00932644,95792.0,95791.0,0.209787]
[1735238138183,0.01832644,95792.0,95791.0,0.210787]
[1735238138374,0.00932644,95792.0,95791.0,0.209787]
[1735238139685,0.00932644,95792.0,95791.0,0.31377332]
[1735238140412,0.01832644,95792.0,95791.0,0.31477332]
[1735238140570,0.00932644,95792.0,95791.0,0.31377332]
[1735238140775,0.00032644,95792.0,95791.0,0.31277332]
[1735238140975,0.00932644,95792.0,95791.0,0.31377332]
[1735238141179,0.01832644,95792.0,95791.0,0.31477332]
[1735238141389,0.01832644,95792.0,95791.0,0.39167332]
[1735238141585,0.00118017,95792.0,95791.0,0.71217332]
[1735238142362,0.01018017,95792.0,95791.0,0.71317332]
[1735238142578,0.0796,95845.0,95791.0,0.71317332]
[1735238142579,0.208672,95844.0,95829.0,0.208704]
[1735238142766,0.00051766,95840.0,95829.0,0.208704]
[1735238143124,0.00051766,95840.0,95830.0,0.13712123]
[1735238143374,0.01127804,95839.0,95836.0,0.208689]
[1735238143699,0.00051766,95840.0,95837.0,0.208687]
[1735238144125,0.00051766,95840.0,95837.0,0.417374]
[1735238144728,0.00051766,95840.0,95839.0,0.208683]
[1735238144935,0.00051766,95840.0,95839.0,0.28269236]
[1735238145282,0.00051766,95840.0,95839.0,0.38667868]
[1735238146692,0.0001712,95848.0,95847.0,0.208665]
[1735238146898,0.00032637,95848.0,95847.0,0.208665]
[1735238147077,0.001,95840.0,95839.0,0.216683]
[1735238147280,0.00032637,95848.0,95839.0,0.2572204]
[1735238147687,0.00032637,95848.0,95843.0,0.208672]
[1735238148095,0.00032637,95848.0,95847.0,0.003]
[1735238148726,0.00032637,95848.0,95845.0,0.41734]
[1735238148938,0.00032637,95848.0,95847.0,0.208665]
[1735238149143,0.00032637,95848.0,95843.0,0.004]
[1735238149144,0.10431269,95848.0,95843.0,0.004]
[1735238149367,0.10431269,95848.0,95821.0,0.30195728]
[1735238149368,0.208668,95846.0,95826.0,0.208709]
[1735238149580,0.10431269,95848.0,95835.0,0.09323728]
[1735238149581,0.21565651,95847.0,95835.0,0.09323728]
[1735238149794,0.10431269,95848.0,95835.0,0.09323728]
[1735238150001,0.208678,95842.0,95835.0,0.09323728]
[1735238150417,0.208681,95840.0,95835.0,0.09323728]
[1735238151025,0.208685,95838.0,95827.0,0.208709]
[1735238151268,0.00699151,95839.0,95835.0,0.001]
[1735238151476,0.208678,95842.0,95835.0,0.003]
[1735238151687,0.10431269,95848.0,95835.0,0.21069]
[1735238151688,0.00699151,95837.0,95835.0,0.21069]
[1735238151894,0.00032637,95848.0,95847.0,0.208665]
[1735238152944,0.00032637,95848.0,95847.0,0.31265132]
[1735238153569,0.0001718,95870.0,95847.0,0.31265132]
[1735238153776,0.0001718,95870.0,95848.0,0.10502943]
[1735238154192,0.208619,95869.0,95847.0,0.009]
[1735238154343,0.208632,95863.0,95848.0,0.208663]
[1735238154555,0.208632,95863.0,95848.0,0.2588974]
[1735238154725,0.0092,95849.0,95848.0,0.2588974]
[1735238155336,0.0092,95849.0,95848.0,0.0502344]
[1735238155974,0.0092,95849.0,95847.0,0.004]
[1735238156373,0.0102,95849.0,95847.0,0.013]
[1735238156589,0.00949232,95848.0,95847.0,0.009]
[1735238156846,0.208678,95842.0,95828.0,0.208707]
[1735238157044,0.208678,95842.0,95828.0,0.20922466]
[1735238157241,0.0002,95849.0,95828.0,0.00051766]
[1735238157371,0.00949232,95841.0,95828.0,0.00051766]
[1735238157579,0.208681,95840.0,95828.0,0.00051766]
[1735238158039,0.00946965,95839.0,95828.0,0.00051766]
[1735238158253,0.208685,95838.0,95828.0,0.00051766]
[1735238158644,0.00946965,95837.0,95828.0,0.00151766]
[1735238158856,0.00946965,95837.0,95828.0,0.00451766]
[1735238159061,0.208689,95836.0,95828.0,0.00451766]
[1735238159437,0.00946965,95835.0,95828.0,0.00451766]
[1735238159951,0.00946965,95835.0,95828.0,0.00351766]
[1735238160161,0.00946965,95835.0,95828.0,0.00151766]
[1735238160334,0.00946965,95835.0,95829.0,0.208705]
[1735238160564,0.208682,95840.0,95829.0,0.208705]
[1735238160739,0.00946965,95834.0,95829.0,0.208705]
[1735238161018,0.001,95835.0,95829.0,0.208705]
[1735238161201,0.208862,95849.0,95833.0,0.208696]
[1735238161431,0.0001712,95842.0,95833.0,0.417392]
[1735238161635,0.001,95835.0,95833.0,0.417392]
[1735238161788,0.001,95835.0,95833.0,0.45939153]
[1735238162512,0.0001712,95842.0,95833.0,0.25069553]
[1735238162714,0.0001712,95842.0,95833.0,0.208696]
[1735238162946,0.0001712,95842.0,95830.0,0.208701]
[1735238162947,0.208678,95841.0,95830.0,0.208701]
[1735238163423,0.208678,95841.0,95829.0,0.208705]
[1735238163728,0.208678,95841.0,95829.0,0.212705]
[1735238164102,0.208678,95841.0,95830.0,0.001]
[1735238164492,0.208681,95840.0,95830.0,0.003]
[1735238164693,0.208681,95840.0,95828.0,0.00060326]
[1735238164896,0.208681,95840.0,95829.0,0.001]
[1735238165098,0.208681,95840.0,95829.0,0.003]
[1735238165240,0.208681,95840.0,95829.0,0.001]
[1735238165443,0.208683,95839.0,95829.0,0.001]
[1735238165643,0.208683,95839.0,95830.0,0.002]
[1735238165850,0.0001712,95842.0,95830.0,0.02323163]
[1735238166058,0.208678,95841.0,95831.0,0.2087]
[1735238166262,0.10415752,95842.0,95830.0,0.02323163]
[1735238166263,0.0001712,95842.0,95830.0,0.02323163]
[1735238166467,0.0001712,95842.0,95839.0,0.208682]
[1735238166667,0.0001712,95842.0,95841.0,0.208678]
[1735238168183,0.0011712,95842.0,95841.0,0.217678]
[1735238168373,0.0011712,95842.0,95841.0,0.222678]
[1735238169562,0.0002,95849.0,95848.0,0.208663]
[1735238169742,0.0002,95849.0,95848.0,0.251296]
[1735238171041,0.0092,95849.0,95848.0,0.252296]
[1735238171361,0.0182,95849.0,95848.0,0.253296]
[1735238172284,0.0182,95849.0,95848.0,0.35728232]
[1735238172460,0.0182,95849.0,95848.0,0.51757777]
[1735238173624,0.0182,95849.0,95848.0,0.47494477]
[1735238173819,0.0182,95849.0,95848.0,1.00598359]
[1735238174432,0.0001718,95870.0,95849.0,0.35866]
[1735238174637,0.0001718,95870.0,95851.0,0.208657]
[1735238174836,0.0001718,95870.0,95851.0,0.31264332]
[1735238175037,0.0001718,95870.0,95851.0,0.41662964]
[1735238175288,0.0001718,95870.0,95851.0,0.49802964]
[1735238175827,0.0001718,95870.0,95851.0,0.77102964]
[1735238176225,0.0001718,95870.0,95851.0,0.54404332]
[1735238176428,0.0001718,95870.0,95851.0,0.73969582]
[1735238176548,0.0061718,95852.0,95851.0,0.53103882]
[1735238176988,0.0001718,95852.0,95851.0,0.53103882]
[1735238177192,0.0091718,95852.0,95851.0,0.53203882]
[1735238177367,0.0091718,95852.0,95851.0,0.34405352]
[1735238177575,0.0031718,95852.0,95851.0,0.34405352]
[1735238177769,0.0001718,95852.0,95851.0,0.35305352]
[1735238178615,0.0001718,95852.0,95851.0,0.014]
[1735238179018,0.208631,95864.0,95852.0,0.208655]
[1735238179197,0.208622,95867.0,95853.0,0.208652]
[1735238179604,0.208622,95867.0,95854.0,0.20865]
[1735238179832,0.00951643,95866.0,95855.0,0.208648]
[1735238179962,0.00951643,95866.0,95855.0,0.0010432]
[1735238180163,0.0001718,95870.0,95866.0,0.208623]
[1735238180378,0.0001718,95870.0,95866.0,0.417246]
[1735238180906,0.0001718,95870.0,95866.0,0.417247]
[1735238181097,0.001,95866.0,95862.0,0.208631]
[1735238181703,0.001,95867.0,95857.0,0.208642]
[1735238181908,0.001,95867.0,95866.0,0.006]
[1735238182265,0.01057625,95867.0,95866.0,0.006]
[1735238182469,0.001,95867.0,95866.0,0.006]
[1735238182712,0.01057625,95867.0,95866.0,0.006]
[1735238182891,0.001,95867.0,95866.0,0.006]
[1735238183247,0.0011718,95870.0,95866.0,0.006]
[1735238183565,0.208618,95869.0,95866.0,0.006]
[1735238183857,0.208628,95865.0,95855.0,0.09333353]